Cogmind - Beta 13 @@@ ROGUE MODE // 2024.03.31 @ 18:14:11 Player: opdo Result: Self-destructed Performance ------------- Evolutions (1) 500 Regions Visited (4) 800 Robots Destroyed (7) 35 Value Destroyed (116) 116 Prototype IDs (0) 0 Alien Tech Used (0) 0 Bonus (176) 176 TOTAL SCORE: 1627 Bonus ------- Follower Combat Kills 176 Cogmind --------- Core Integrity 365/400 Matter 90/300 Energy 250/250 System Corruption 0% Temperature Cool (9) Movement Core (300) Ox5 Location -9/Storage Parts ------- > --- POWER (1) -------- Ion Engine > --- PROPULSION (2) --- (None) > --- UTILITY (3) ------ Small Storage Unit Seismic Detector > --- WEAPON (3) ------- Assault Rifle Light Assault Rifle Makeshift Hammer > --- INVENTORY (8) ---- Aluminum Leg Aluminum Leg Large Storage Unit Terrain Scanner Transport Network Coupler EM Pulse Gun Peak State ------------ > --- POWER ------------ Ion Engine > --- PROPULSION ------- Aluminum Leg Aluminum Leg > --- UTILITY ---------- Small Storage Unit Seismic Detector Drone Bay > --- WEAPON ----------- Assault Rifle Light Assault Rifle Makeshift Hammer > --- INVENTORY -------- Aluminum Leg Aluminum Leg Large Storage Unit Terrain Scanner Transport Network Coupler EM Pulse Gun [Rating: 16] Favorites ----------- Power Ion Engine Engine Ion Engine Propulsion Aluminum Leg Leg Aluminum Leg Utility Small Storage Unit Device Seismic Detector Storage Small Storage Unit Weapon Assault Rifle Energy Gun EM Pulse Gun Ballistic Gun Assault Rifle Impact Weapon Makeshift Hammer Build | -11 -10 -10 -9 -9 ------- Run | Yrd Mat Min Mat Sto Slots Evolved 2 | . . . 2 . Power . | . . . . . Propulsion . | . . . . . Utility 1 | . . . 1 . Weapon 1 | . . . 1 . Parts Attached 10 | 7 1 . 1 1 Power 1 | 1 . . . . Engine 1 | 1 . . . . Core . | . . . . . Reactor . | . . . . . Propulsion 2 | 2 . . . . Treads . | . . . . . Leg 2 | 2 . . . . Wheel . | . . . . . Hover . | . . . . . Flight . | . . . . . Utility 3 | 1 1 . . 1 Device 2 | . 1 . . 1 Storage 1 | 1 . . . . Processor . | . . . . . Hackware . | . . . . . Protection . | . . . . . Artifact . | . . . . . Weapon 4 | 3 . . 1 . Energy Gun 1 | 1 . . . . Energy Cannon . | . . . . . Ballistic Gun 2 | 2 . . . . Ballistic Cannon . | . . . . . Launcher . | . . . . . Special Weapon . | . . . . . Impact Weapon 1 | . . . 1 . Slashing Weapon . | . . . . . Piercing Weapon . | . . . . . Special Melee Weapon . | . . . . . Unidentified Prototypes . | . . . . . Parts Lost 3 | . . . . 3 Power . | . . . . . Propulsion 2 | . . . . 2 Utility 1 | . . . . 1 Weapon . | . . . . . Highest Loss Streak 3 | . . . . 3 To Critical Strikes . | . . . . . Average Slot Usage (%) 94 | . 93 100 82 98 Engine 12 | . 14 14 11 11 Leg 25 | . 28 28 22 22 Device 13 | . 8 14 11 20 Storage 12 | . 14 14 11 11 Ballistic Gun 25 | . 28 28 22 22 Impact Weapon 3 | . . . 5 11 Naked Turns . | . . . . . Heaviest Build 23 | 14 14 14 17 23 Greatest Support 20 | 20 20 20 20 20 Greatest Overweight (x) 4 | 4 . . . 1 Average Overweight (x) . | . . . . . Largest Inventory Capacity 8 | 8 8 8 8 8 Average Capacity 7 | 7 8 8 8 8 Most Carried 7 | 4 5 7 7 7 Average Carried 4 | 1 3 5 6 6 Final Capacity 8 | 8 8 8 8 8 Final Carried 7 | 1 5 7 6 6 Class Distribution -------------------- 100% | Mutant Dominant Class ---------------- Mutant | -10/Materials Mutant | -10/Mines Mutant | -9/Materials Mutant | -9/Storage Resources | -11 -10 -10 -9 -9 ----------- Run | Yrd Mat Min Mat Sto Matter Collected 251 | . 141 82 28 . Remotely . | . . . . . Salvage Created 211 | . 141 . 28 42 Parts 9 | . 7 . . 2 Haulers Intercepted 1 | . 1 . . . Recyclers Shooed . | . . . . . Parts Field Recycled . | . . . . . Retrieved Matter . | . . . . . Parts Self-Destructed . | . . . . . Prevented . | . . . . . Kills | -11 -10 -10 -9 -9 ------- Run | Yrd Mat Min Mat Sto Combat Hostiles Destroyed 5 | . 4 . . 1 Guns 5 | . 4 . . 1 Classes Destroyed 4 | . 3 . 1 . Hauler 1 | . 1 . . . Watcher 1 | . . . 1 . Swarmer 3 | . 3 . . . Grunt 2 | . 1 . . 1 Best Kill Streak 5 | . 5 . 1 1 Combat Bots Only 3 | . 3 . . 1 Max Kills in Single Turn 2 | . 2 . 1 1 Gunslinging 1 | . 1 . . . Exploded . | . . . . . Melee . | . . . . . Uniques/NPCs Destroyed . | . . . . . Combat | -11 -10 -10 -9 -9 -------- Run | Yrd Mat Min Mat Sto Hostile Shots Fired 64 | . 8 12 4 40 Missed 22 | . 3 4 1 14 Damage Taken 541 | . 49 122 44 326 Core 73 | . 6 32 . 35 Absorbed by Shields . | . . . . . Core Remaining (%) 92 | 100 . 84 . . Volleys Fired 44 | . 16 7 10 11 Largest 2 | . 2 2 2 2 Hottest 40 | . 40 40 40 40 Shots Fired 88 | . 32 14 20 22 Gun 88 | . 32 14 20 22 Cannon . | . . . . . Launcher . | . . . . . Special . | . . . . . Kinetic 88 | . 32 14 20 22 Thermal . | . . . . . Explosive . | . . . . . Electromagnetic . | . . . . . Robot Hit Streak 12 | . 12 4 4 2 Robot Miss Streak 9 | . 9 3 7 3 Penetration Max . | . . . . . Secondary Targets 1 | . 1 . . . Max Gunslinging Chain 1 | . 1 . . . Shots Hit Robots 39 | . 16 6 10 7 Core Hits 16 | . 9 2 . 5 Critical Kills . | . . . . . Critical Parts Destroyed 2 | . 1 . 1 . Critical Strikes 2 | . 1 . 1 . Destroy 1 | . 1 . . . Smash 1 | . . . 1 . Melee Attacks 1 | . . . 1 . Impact 1 | . . . 1 . Slashing . | . . . . . Piercing . | . . . . . Sneak Attacks . | . . . . . Combat Hostiles . | . . . . . Follow-up Attacks . | . . . . . Damage Inflicted 468 | . 193 60 125 90 Guns 430 | . 193 60 87 90 Cannons . | . . . . . Explosions . | . . . . . Melee 38 | . . . 38 . Ramming . | . . . . . Kinetic 430 | . 193 60 87 90 Thermal . | . . . . . Explosive . | . . . . . Electromagnetic . | . . . . . Impact 38 | . . . 38 . Slashing . | . . . . . Piercing . | . . . . . Highest Corruption . | . . . . . Average Corruption . | . . . . . Corruption Purged . | . . . . . Corruption Blocked . | . . . . . Overload Shots . | . . . . . Overflow Damage 38 | . . . 38 . Projectiles . | . . . . . Explosions . | . . . . . Melee 38 | . . . 38 . Knockbacks 1 | . . . 1 . Impact 1 | . . . 1 . Kinetic . | . . . . . Secondary . | . . . . . Self-Inflicted Damage . | . . . . . Shots . | . . . . . Rammed . | . . . . . Targets Rammed . | . . . . . Kicked . | . . . . . Crushed . | . . . . . Highest Temperature 12 | . 6 9 7 12 Average Temperature 6 | . 6 9 5 5 Received Heat Transfer 285 | . 18 69 36 162 Siege Activations . | . . . . . Robots Corrupted . | . . . . . Combat Hostiles . | . . . . . Parts Fried 2 | . . . 2 . Impact Corruptions 1 | . . . 1 . Robots Melted . | . . . . . Combat Hostiles . | . . . . . Parts Melted . | . . . . . Heat Transferred . | . . . . . Parts Sabotaged . | . . . . . Parts Stolen . | . . . . . Parts Stripped . | . . . . . Power Chain Reactions . | . . . . . Alert | -11 -10 -10 -9 -9 ------- Run | Yrd Mat Min Mat Sto Peak Influence 202 | . 112 99 202 114 Initial 85 | . . 43 38 85 Average 74 | . 77 55 104 96 Maximum Alert Level 1 | . . . 1 . Low Security (%) 99 | 100 100 100 93 100 Level 1 . | . . . 6 . Level 2 . | . . . . . Level 3 . | . . . . . Level 4 . | . . . . . Level 5 . | . . . . . High Security . | . . . . . Max Security . | . . . . . Squads Dispatched 4 | . 1 . . 3 Investigation 2 | . 1 . . 1 Extermination . | . . . . . Reinforcement 2 | . . . . 2 Assault . | . . . . . Garrison . | . . . . . Intercept . | . . . . . Searches Triggered . | . . . . . Construction Impeded . | . . . . . Haulers Reinforced . | . . . . . Active Scanning Responses . | . . . . . Cargo Convoy Interrupts . | . . . . . Stealth | -11 -10 -10 -9 -9 --------- Run | Yrd Mat Min Mat Sto Distress Signals 3 | . . . 1 2 Communications Jammed . | . . . . . Distress Signals . | . . . . . Times Spotted 27 | . 8 2 6 11 Peak Tracking Total 11 | . 3 2 3 11 Tactical Retreats . | . . . . . Traps | -11 -10 -10 -9 -9 ------- Run | Yrd Mat Min Mat Sto Traps Triggered 1 | . 1 . . . Indirectly . | . . . . . Trap Hack Attempts . | . . . . . Triggered . | . . . . . Disarmed . | . . . . . Reprogrammed . | . . . . . Reused . | . . . . . Traps Extracted . | . . . . . Installed . | . . . . . Triggered . | . . . . . Machines | -11 -10 -10 -9 -9 ---------- Run | Yrd Mat Min Mat Sto Machines Disabled . | . . . . . Max in Single Turn . | . . . . . Machines Repaired . | . . . . . Machines Dismantled . | . . . . . Machines Sabotaged . | . . . . . Overloaded Fab Kills . | . . . . . Hacking | -11 -10 -10 -9 -9 --------- Run | Yrd Mat Min Mat Sto Machines Accessed 10 | . 2 . 2 6 Terminals 9 | . 2 . 2 5 Fabricators . | . . . . . Repair Stations . | . . . . . Recycling Units . | . . . . . Scanalyzers . | . . . . . Garrison Access 1 | . . . . 1 Total Hacks 18 | . 2 . 3 13 Successful 10 | . 2 . 1 7 Failed 8 | . . . 2 6 Catastrophic . | . . . . . Database Lockouts . | . . . . . Manual 15 | . 2 . 3 10 Terminals 13 | . 2 . 3 8 Fabricators . | . . . . . Repair Stations . | . . . . . Recycling Units . | . . . . . Scanalyzers . | . . . . . Garrison Access 5 | . . . . 5 Terminal Hacks 1 | . . . . 1 Open Door 1 | . . . . 1 Fabricator Hacks . | . . . . . Repair Station Hacks . | . . . . . Recycling Unit Hacks . | . . . . . Scanalyzer . | . . . . . Garrison Access Hacks 2 | . . . . 2 Unlock Access 1 | . . . . 1 Coupler Status 1 | . . . . 1 Unauthorized Hacks 7 | . 2 . 1 4 Terminals 6 | . 2 . 1 3 Botnet 6 | . 2 . 1 3 Fabricators . | . . . . . Repair Stations . | . . . . . Recycling Units . | . . . . . Scanalyzers . | . . . . . Garrison Access 1 | . . . . 1 Reprogram 1 | . . . . 1 Data Cores Recovered . | . . . . . Used . | . . . . . Hacking Detections 4 | . . . 1 3 Full Trace Events . | . . . . . Feedback Events . | . . . . . Feedback Blocked . | . . . . . Robot Schematics Acquired . | . . . . . Robots Built . | . . . . . Authchips . | . . . . . Time . | . . . . . Total Robot Build Rating . | . . . . . Part Schematics Acquired . | . . . . . Parts Built . | . . . . . Authchips . | . . . . . Time . | . . . . . Total Part Build Rating . | . . . . . Parts Repaired . | . . . . . Time . | . . . . . Parts Recycled . | . . . . . Recycled Matter . | . . . . . Retrieved Matter . | . . . . . Retrieved Components . | . . . . . Parts Scanalyzed . | . . . . . Part Schematics Acquired . | . . . . . Parts Damaged . | . . . . . Bothacking | -11 -10 -10 -9 -9 ------------ Run | Yrd Mat Min Mat Sto Used RIF Installer . | . . . . . Robots Hacked . | . . . . . Non-combat . | . . . . . Combat . | . . . . . Robot Hacks Applied . | . . . . . Relay Couplers Released . | . . . . . Fabnet Peak Effective % . | . . . . . Robots Rewired . | . . . . . Allies Hacked . | . . . . . Hacks Repelled . | . . . . . Allies | -11 -10 -10 -9 -9 -------- Run | Yrd Mat Min Mat Sto Total Allies 3 | . . 2 . 1 Largest Group 2 | . . 2 2 1 Highest-Rated Group 41 | . . 41 41 8 Highest-Rated Ally 31 | . . 31 31 8 Total Orders 1 | . . . . 1 ROAM 1 | . . . . 1 Ally Attacks 25 | . . 3 19 3 Total Damage 308 | . . 42 246 20 Kills 6 | . . 2 4 . Allies Corrupted . | . . . . . Allies Melted . | . . . . . Intel | -11 -10 -10 -9 -9 ------- Run | Yrd Mat Min Mat Sto Robot Analysis Total . | . . . . . Derelict Logs Recovered 1 | . . 1 . . Drone Launches 2 | . . . . 2 Drone Recoveries 2 | . . . . 2 Exploration | -11 -10 -10 -9 -9 ------------- Run | Yrd Mat Min Mat Sto Turns Passed 838 | 64 286 183 101 204 Spaces Moved 519 | 45 186 135 59 94 Core 20 | 20 . . . . Treads . | . . . . . Legs 499 | 25 186 135 59 94 Wheels . | . . . . . Hover . | . . . . . Flight . | . . . . . Fastest Speed 50 | 50 120 120 120 120 Average Speed 128 | 111 120 120 120 172 Slowest Speed 250 | 250 120 120 120 190 Overloaded Moves . | . . . . . Propulsion Burnouts . | . . . . . Robots Hopped . | . . . . . Cave-ins Triggered . | . . . . . Exploration Rate (%) 19 | 5 41 21 14 18 Regions Visited 4 Branch Regions 2 Pre-discovered Areas . | . . . . . Known Exits Taken 1 | . . . 1 . Unknown Exits Taken 3 | 1 1 1 . . Scrap Searched . | . . . . . Spaces Dug . | . . . . . Terrain Destroyed . | . . . . . Melee . | . . . . . Projectile . | . . . . . AOE . | . . . . . Terrain Rammed . | . . . . . Walls Destroyed . | . . . . . Machines Disabled . | . . . . . Actions | -11 -10 -10 -9 -9 --------- Run | Yrd Mat Min Mat Sto Total 606 | 58 220 143 70 115 Wait 21 | . 13 . . 8 Move 515 | 44 185 134 58 94 Hop . | . . . . . Pick Up 15 | 7 5 2 . 1 Fast Attach . | . . . . . Attach 9 | 6 1 . 1 1 Detach . | . . . . . Swap 1 | 1 . . . . Drop . | . . . . . Fire 44 | . 16 7 10 11 Melee 1 | . . . 1 . Ram . | . . . . . Kick . | . . . . . Crush . | . . . . . Escape Stasis . | . . . . . Rewire . | . . . . . Trap . | . . . . . Miscellaneous . | . . . . . Route ------- -11/Scrapyard -10/Materials -10/Mines -9/Materials -9/Storage (discovered 1 exit: Gar) History --------- Turn | Location | Event 12 | -11/Scrapyard | Discovered new exit (range 16) 65 | -11/Scrapyard | Entered Materials 215 | -10/Materials | Discovered new exit (range 12) 317 | -10/Materials | Build established: Mutant 351 | -10/Materials | Entered Mines 482 | -10/Mines | Discovered new exit (range 9) 513 | -10/Mines | A weapon hastily lodged in a ceiling crevice suddenly fell to the ground 534 | -10/Mines | Entered Materials 534 | -9/Materials | Accompanied by 2 allies 534 | -9/Materials | Evolved 2 slots: Utility x1, Weapon x1 535 | -9/Materials | Identified exit to Storage 539 | -9/Materials | Led the pair of lost Derelicts to an unsafe place 635 | -9/Materials | Entered Storage 644 | -9/Storage | Identified exit to Garrison 839 | -9/Storage | Self-destructed Last Messages --------------- system. 00736_ Connecting with Terminal... 00759_ G-34 Mercenary destroyed. 00761_ K-01 Serf collects debris. 00763_ Drone retrieved by Drone Bay. 00768_ O-16 Technician: "IFF HANDSHAKE FAILED. SECURING TERMINAL." 00773_ ALERT: Hostiles spotted, dispatching reinforcements to Terminal S015. 00780_ R-06 Scavenger collects Heat Sink. 00783_ K-01 Serf cleans the Terminal. 00784_ Drone retrieved by Drone Bay. 00784_ R-06 Scavenger collects Sml. Laser. 00790_ K-01 Serf collects debris. 00799_ G-34 Mercenary destroyed. 00799_ R-06 Scavenger collects Ion Engine. 00835_ Drone Bay destroyed. 00837_ Aluminum Leg destroyed. 00838_ G-34 Mercenary destroyed. 00839_ Aluminum Leg destroyed. Map ----- +----------------------------------------------------+ | ?????????????????????????# #????? | | ?????????????????????????# #????? | | ?????????????????????????# #????? | | ?????????????? ??????????# #????? | | ??????????????+??????????# #????? | | ?????????????? #?????????# #????? | | ?????????????? #?????????# ####?? | | ??????????#### #?????????# "" #?? | | ??????????+ +?????????# >G"#?? | | ??????????# #?????????# "" #?? | | ??????????# #?????????# ####?? | | ?????????? #?????????# #????? | | ??????????# #??######## #????? | | ??????????# #??#!!! # # #????? | | ??????????+ #??# # #????? | | ??????????# #??#!!!!# + #????? | | ??????????# #??######T# #????? | | ??????????# #???????### #????? | | ?????????## #?????????# #????? | | ?????????#T #?????????# #????? | | ??????????# #?????????# #????? | | ??????????# ##/########### #????? | | ??????????# ?#a g = # #????? | | ??????????#??# g*%= # #????? | | ?????????????# g [ # #????? | | ?????????????# @ #????? | | ?????????????# #gg #????? | | ?????????????# #Y #????? | | ?????????????# # #????? | | ?????????################# ##???? | | ?????????# #####"T"## #???? | | ?????????# " #???? | | ?????????# "T T #???? | | ?????????# % #???? | | ?????????# ####"T"### #???? | | ?????????##### #??#"""#?#######???? | | ?????????????#[#??#####???????????? | | ?????????????#%#??????????????????? | | ?????????????#=#??????????????????? | | ?????????????/ ??????????????????? | | ?????????????# ??????????????????? | | ?????????????# #?????????????????? | | ?????????????# #?????????????????? | | ?????????????# #?????????????????? | | ?????????????# #?????????????????? | | ?????????????# #?????????????????? | | ????????????? ?????????????????? | | ????????????? ?????????????????? | | ????????????? ?????????????????? | | ????????????? ?????????????????? | +----------------------------------------------------+ Best States ------------- Heat Dissipation 28 Energy Generation 10 Energy Capacity 250 Matter Stores 157 Matter Capacity 300 Sight Range 16 Terrain Scan Density 10 Evasion (%) 55 Item Schematics ----------------- None Robot Schematics ------------------ None Fabricated ------------ Nothing Alien Tech Used ----------------- None Achievements -------------- None Challenges ------------ None Game ------ Seed GaussGammaDoublenader Manual? 0 Play Time 00:08:27 Cumulative 20.7 hours Start 2024.03.31 @ 18:07:26 End 2024.03.31 @ 18:14:11 Sessions 1 Manual Loads 0 Difficulty Rogue Special Mode None Game No. 57 Rogue 55 Adventurer 2 Explorer 0 Win Type - Total 0 Types 0/0/0/0/0/0/0/0/0 Lore% 20 Gallery% 33 Achievement% 23 Wizard Run 0 Options --------- Layout 1 ASCII 0 Keyboard 0 Movement Arrows Keybinds 0 Fullscreen 2 Font 24/Smallcaps Map View 50x35 Zoom Use 0% Tactical HUD 1 Map Filters NONE Filters NONE Steam 1 RUN: 3ed55b2f-e91f-4e81-a267-8e5b3b556b0a